fUSD/lending_fUSD_20250716
["ID","MTS","AMOUNT","RATE_DAILY","PERIOD"]
[372601355,1752701434108,-460.0,0.00019671,2]
[372601356,1752701434118,-523.56,0.00019671,2]
[372601357,1752701434128,-1254.71,0.00019671,2]
[372601358,1752701434138,-460.0,0.00019671,2]
[372601359,1752701434147,-250.0,0.00019671,2]
[372601360,1752701434157,-460.0,0.00019671,2]
[372601361,1752701434167,-460.0,0.00019671,2]
[372601362,1752701434177,-489.8455282,0.00019671,2]
[372601363,1752701434187,-695.61,0.00019671,2]
[372601364,1752701434196,-460.0,0.00019671,2]
[372601365,1752701434206,-249.212716,0.00019671,2]
[372601366,1752701434215,-542.27,0.00019671,2]
[372601367,1752701434224,-460.0,0.00019671,2]
[372601368,1752701434234,-460.0,0.00019671,2]
[372601369,1752701434244,-460.0,0.00019671,2]
[372601370,1752701434253,-460.0,0.00019671,2]
[372601371,1752701434262,-460.0,0.00019671,2]
[372601372,1752701434272,-460.0,0.00019671,2]
[372601373,1752701434282,-460.0,0.00019671,2]
[372601374,1752701434292,-460.0,0.00019671,2]
[372601375,1752701434302,-555.72,0.00019671,2]
[372601376,1752701434311,-460.0,0.00019671,2]
[372601377,1752701434321,-460.0,0.00019671,2]
[372601378,1752701434331,-460.0,0.00019671,2]
[372601379,1752701434341,-460.0,0.00019671,2]
[372601380,1752701434351,-677.33,0.00019671,2]
[372601381,1752701434360,-460.0,0.00019671,2]
[372601382,1752701434370,-460.0,0.00019671,2]
[372601383,1752701434379,-460.0,0.00019671,2]
[372601384,1752701434389,-460.0,0.00019671,2]
[372601385,1752701434398,-460.0,0.00019671,2]
[372601386,1752701434408,-460.0,0.00019671,2]
[372601387,1752701434418,-460.0,0.00019671,2]
[372601388,1752701434428,-168.69389238,0.00019671,2]
[372601389,1752701434439,-734.71,0.00019671,2]
[372601390,1752701434449,-460.0,0.00019671,2]
[372601391,1752701434460,-460.0,0.00019671,2]
[372601392,1752701434471,-522.92,0.00019671,2]
[372601393,1752701434480,-460.0,0.00019671,2]
[372601394,1752701434490,-490.0,0.00019671,2]
[372601395,1752701434499,-460.0,0.00019671,2]
[372601396,1752701434509,-460.0,0.00019671,2]
[372601397,1752701434519,-490.0,0.00019671,2]
[372601398,1752701434529,-460.0,0.00019671,2]
[372601399,1752701434539,-460.0,0.00019671,2]
[372601400,1752701434548,-460.0,0.00019671,2]
[372601401,1752701434558,-460.0,0.00019671,2]
[372601402,1752701434567,-603.42,0.00019671,2]
[372601403,1752701434577,-460.0,0.00019671,2]
[372601404,1752701434586,-460.0,0.00019671,2]
[372601405,1752701434596,-460.0,0.00019671,2]
[372601406,1752701434605,-460.0,0.00019671,2]
[372601407,1752701434614,-388.59026478,0.00019671,2]
[372601408,1752701434624,-460.0,0.00019671,2]
[372601409,1752701434634,-460.0,0.00019671,2]
[372601410,1752701434644,-460.0,0.00019671,2]
[372601411,1752701434654,-460.0,0.00019671,2]
[372601412,1752701434664,-577.49650401,0.00019671,2]
[372601413,1752701434674,-460.0,0.00019671,2]
[372601414,1752701434685,-460.0,0.00019671,2]
[372601415,1752701434694,-460.0,0.00019671,2]
[372601416,1752701434704,-460.0,0.00019671,2]
[372601417,1752701434713,-460.0,0.00019671,2]
[372601418,1752701434723,-460.0,0.00019671,2]
[372601419,1752701434732,-5.54914701,0.00019671,2]
[372601420,1752701434753,-503.75085299,0.00019671,2]
[372601421,1752701434763,-460.0,0.00019671,2]
[372601422,1752701434773,-460.0,0.00019671,2]
[372601423,1752701434782,-460.0,0.00019671,2]
[372601424,1752701434795,-460.0,0.00019671,2]
[372601425,1752701434804,-460.0,0.00019671,2]
[372601426,1752701434813,-460.0,0.00019671,2]
[372601427,1752701434823,-460.0,0.00019671,2]
[372601428,1752701434833,-464.02800147,0.00019671,2]
[372601429,1752701434842,-460.0,0.00019671,2]
[372601430,1752701434852,-460.0,0.00019671,2]
[372601431,1752701434862,-460.0,0.00019671,2]
[372601432,1752701434875,-460.0,0.00019671,2]
[372601433,1752701434886,-460.0,0.00019671,2]
[372601434,1752701434896,-460.0,0.00019671,2]
[372601435,1752701434905,-460.0,0.00019671,2]
[372601436,1752701434915,-460.0,0.00019671,2]
[372601437,1752701434925,-460.0,0.00019671,2]
[372601438,1752701434934,-460.0,0.00019671,2]
[372601439,1752701434945,-460.0,0.00019671,2]
[372601440,1752701434955,-460.0,0.00019671,2]
[372601441,1752701434966,-462.34735879,0.00019671,2]
[372601442,1752701434976,-460.0,0.00019671,2]
[372601443,1752701434993,-460.0,0.00019671,2]
[372601444,1752701435003,-576.65,0.00019671,2]
[372601445,1752701435012,-909.2,0.00019671,2]
[372601446,1752701435023,-460.0,0.00019671,2]
[372601447,1752701435032,-975.0,0.00019671,2]
[372601449,1752701435043,-472.73,0.00019671,2]
[372601450,1752701435053,-460.0,0.00019671,2]
[372601451,1752701435062,-460.0,0.00019671,2]
[372601452,1752701435071,-460.0,0.00019671,2]
[372601453,1752701435081,-464.94,0.00019671,2]
[372601454,1752701435091,-460.0,0.00019671,2]
[372601455,1752701435100,-460.0,0.00019671,2]
[372601456,1752701435110,-805.84,0.00019671,2]
[372601457,1752701435120,-460.0,0.00019671,2]
[372601458,1752701435131,-460.0,0.00019671,2]
[372601459,1752701435141,-460.0,0.00019671,2]
[372601460,1752701435151,-460.0,0.00019671,2]
[372601461,1752701435160,-460.0,0.00019671,2]
[372601462,1752701435170,-460.0,0.00019671,2]
[372601463,1752701435179,-460.0,0.00019671,2]
[372601464,1752701435189,-460.0,0.00019671,2]
[372601465,1752701435198,-460.0,0.00019671,2]
[372601466,1752701435207,-633.6,0.00019671,2]
[372601467,1752701435217,-460.0,0.00019671,2]
[372601468,1752701435226,-460.0,0.00019671,2]
[372601469,1752701435236,-460.0,0.00019671,2]
[372601470,1752701435246,-460.75481696,0.00019671,2]
[372601471,1752701435255,-454.47088519,0.00019671,2]
[372601472,1752701435266,-2326.69,0.00019671,2]
[372601473,1752701435275,-460.0,0.00019671,2]
[372601474,1752701435285,-460.0,0.00019671,2]
[372601475,1752701435294,-460.0,0.00019671,2]
[372601476,1752701435304,-460.0,0.00019671,2]
[372601477,1752701435313,-460.0,0.00019671,2]
[372601478,1752701435322,-460.0,0.00019671,2]
[372601479,1752701435331,-1071.65,0.00019671,2]
[372601480,1752701435341,-460.0,0.00019671,2]
[372601481,1752701435351,-460.0,0.00019671,2]
[372601482,1752701435360,-460.0,0.00019671,2]
[372601483,1752701435369,-460.0,0.00019671,2]
[372601484,1752701435379,-555.07,0.00019671,2]
[372601485,1752701435389,-460.0,0.00019671,2]
[372601486,1752701435398,-460.0,0.00019671,2]
[372601487,1752701435408,-460.0,0.00019671,2]
[372601488,1752701435417,-460.0,0.00019671,2]
[372601489,1752701435426,-460.0,0.00019671,2]
[372601490,1752701435436,-460.0,0.00019671,2]
[372601491,1752701435445,-804.88,0.00019671,2]
[372601492,1752701435455,-460.0,0.00019671,2]
[372601493,1752701435464,-460.0,0.00019671,2]
[372601494,1752701435473,-1371.3,0.00019671,2]
[372601495,1752701435483,-877.73,0.00019671,2]
[372601496,1752701435492,-460.0,0.00019671,2]
[372601497,1752701435502,-460.0,0.00019671,2]
[372601498,1752701435512,-460.0,0.00019671,2]
[372601499,1752701435522,-691.31,0.00019671,2]
[372601500,1752701435532,-460.0,0.00019671,2]
[372601501,1752701435541,-460.0,0.00019671,2]
[372601502,1752701435550,-460.0,0.00019671,2]
[372601503,1752701435560,-460.0,0.00019671,2]
[372601504,1752701435569,-460.0,0.00019671,2]
[372601505,1752701435578,-460.0,0.00019671,2]
[372601506,1752701435587,-460.0,0.00019671,2]
[372601507,1752701435597,-460.0,0.00019671,2]
[372601508,1752701435606,-690.00159577,0.00019671,2]
[372601509,1752701435738,-321.18840423,0.00019671,2]
[372601510,1752701435748,-1577.83,0.00019671,2]
[372601511,1752701435759,-460.0,0.00019671,2]
[372601512,1752701435769,-495.38001186,0.00019671,2]
[372601513,1752701435779,-482.25,0.00019671,2]
[372601514,1752701435791,-460.0,0.00019671,2]
[372601515,1752701435808,-460.0,0.00019671,2]
[372601516,1752701435818,-460.0,0.00019671,2]
[372601517,1752701435828,-712.81,0.00019671,2]
[372601518,1752701435838,-460.0,0.00019671,2]
[372601519,1752701435847,-460.0,0.00019671,2]
[372601520,1752701435860,-460.0,0.00019671,2]
[372601521,1752701435870,-460.0,0.00019671,2]
[372601522,1752701435881,-460.0,0.00019671,2]
[372601523,1752701435890,-962.45,0.00019671,2]
[372601524,1752701435900,-460.0,0.00019671,2]
[372601525,1752701435910,-460.0,0.00019671,2]
[372601526,1752701435920,-930.39,0.00019671,2]
[372601527,1752701435929,-460.0,0.00019671,2]
[372601528,1752701435938,-460.0,0.00019671,2]
[372601529,1752701435947,-460.0,0.00019671,2]
[372601530,1752701435957,-638.8,0.00019671,2]
[372601531,1752701435967,-460.0,0.00019671,2]
[372601532,1752701435976,-460.0,0.00019671,2]
[372601533,1752701435986,-460.0,0.00019671,2]
[372601534,1752701435995,-460.0,0.00019671,2]
[372601535,1752701436005,-875.3724251,0.00019671,2]
[372601536,1752701436116,-965.4675749,0.00019671,2]
[372601537,1752701436126,-460.0,0.00019671,2]
[372601538,1752701436135,-120.03241271,0.00019671,2]
[372601539,1752701436147,-339.96758729,0.00019671,2]
[372601540,1752701436157,-500.0,0.00019671,5]
[372601541,1752701436167,-503.66346471,0.00019671,2]
[372601542,1752701436177,-460.0,0.00019671,2]
[372601543,1752701436186,-2532.14,0.00019671,2]
[372601544,1752701436195,-1111.69,0.00019671,2]
[372601545,1752701436205,-546.99,0.00019671,2]
[372601546,1752701436214,-460.0,0.00019671,2]
[372601547,1752701436223,-460.0,0.00019671,2]
[372601548,1752701436233,-460.0,0.00019671,2]
[372601549,1752701436242,-460.0,0.00019671,2]
[372601550,1752701436251,-323.441016,0.00019671,2]
[372601666,1752701439337,-460.0,0.00019571,2]
[372601668,1752701439347,-483.41906057,0.00019571,2]
[372601670,1752701439356,-500.0,0.00019661,2]
[372601672,1752701439367,-332.38530974,0.00019661,2]
[372601674,1752701439376,-500.0,0.00019661,2]
[372601676,1752701439385,-245.74577404,0.00019661,2]
[372601678,1752701439395,-635.64680559,0.00019661,2]
[372601680,1752701439404,-136.558984,0.00019671,2]
[372601682,1752701439413,-636.55,0.00019671,2]
[372601684,1752701439422,-460.0,0.00019671,2]
[372601686,1752701439431,-1030.03,0.00019671,2]
[372601688,1752701439442,-621.62,0.00019671,2]
[372601690,1752701439451,-460.0,0.00019671,2]
[372601692,1752701439461,-460.0,0.00019671,2]
[372601694,1752701439470,-460.0,0.00019671,2]
[372601696,1752701439480,-460.0,0.00019671,2]
[372601698,1752701439489,-460.0,0.00019671,2]
[372601700,1752701439499,-537.57,0.00019671,2]
[372601702,1752701439508,-460.0,0.00019671,2]
[372601704,1752701439517,-460.0,0.00019671,2]
[372601706,1752701439527,-460.0,0.00019671,2]
[372601708,1752701439536,-1210.51,0.00019671,2]
[372601710,1752701439546,-460.0,0.00019671,2]
[372601712,1752701439556,-460.0,0.00019671,2]
[372601714,1752701439567,-460.0,0.00019671,2]
[372601716,1752701439576,-460.0,0.00019671,2]
[372601718,1752701439586,-1297.25,0.00019671,2]
[372601720,1752701439595,-460.0,0.00019671,2]
[372601722,1752701439604,-572.38,0.00019671,2]
[372601724,1752701439614,-460.0,0.00019671,2]
[372601726,1752701439623,-385.561155,0.00019671,2]
[372601727,1752701439632,-460.0,0.00019671,2]
[372601729,1752701439642,-460.0,0.00019671,2]
[372601732,1752701439652,-460.0,0.00019671,2]
[372601733,1752701439662,-460.0,0.00019671,2]
[372601735,1752701439672,-460.0,0.00019671,2]
[372601737,1752701439681,-460.0,0.00019671,2]
[372601739,1752701439690,-835.9,0.00019671,2]
[372601741,1752701439700,-460.0,0.00019671,2]
[372601744,1752701439710,-460.0,0.00019671,2]
[372601746,1752701439720,-573.76,0.00019671,2]
[372601747,1752701439730,-1279.49,0.00019671,2]
[372601749,1752701439739,-460.0,0.00019671,2]
[372601752,1752701439749,-460.0,0.00019671,2]
[372601754,1752701439758,-460.0,0.00019671,2]
[372601756,1752701439769,-460.0,0.00019671,2]
[372601757,1752701439779,-460.0,0.00019671,2]
[372601759,1752701439789,-2662.18,0.00019671,2]
[372601761,1752701439798,-460.0,0.00019671,2]
[372601764,1752701439816,-460.0,0.00019671,2]
[372601766,1752701439826,-460.0,0.00019671,2]
[372601768,1752701439836,-460.0,0.00019671,2]
[372601770,1752701439847,-858.13,0.00019671,2]
[372601772,1752701439856,-460.0,0.00019671,2]
[372601774,1752701439866,-460.0,0.00019671,2]
[372601776,1752701439876,-460.0,0.00019671,2]
[372601778,1752701439887,-460.0,0.00019671,2]
[372601780,1752701439897,-714.65,0.00019671,2]
[372601782,1752701439907,-460.0,0.00019671,2]
[372601784,1752701439916,-460.0,0.00019671,2]
[372601786,1752701439926,-592.79844038,0.00019671,2]
[372601788,1752701439935,-469.15,0.00019671,2]
[372601790,1752701439945,-460.0,0.00019671,2]
[372601792,1752701439954,-1356.56,0.00019671,2]
[372601794,1752701439963,-460.0,0.00019671,2]
[372601796,1752701439973,-460.0,0.00019671,2]
[372601798,1752701439982,-606.93379014,0.00019671,2]
[372601800,1752701439992,-460.0,0.00019671,2]
[372601802,1752701440001,-534.18,0.00019671,2]
[372601804,1752701440011,-460.0,0.00019671,2]
[372601807,1752701440020,-460.0,0.00019671,2]
[372601809,1752701440029,-460.0,0.00019671,2]
[372601812,1752701440039,-1090.04,0.00019671,2]
[372601814,1752701440047,-460.0,0.00019671,2]
[372601817,1752701440057,-1189.19,0.00019671,2]
[372601819,1752701440067,-460.0,0.00019671,2]
[372601821,1752701440076,-460.0,0.00019671,2]
[372601823,1752701440086,-460.0,0.00019671,2]
[372601825,1752701440094,-460.0,0.00019671,2]
[372601827,1752701440104,-151.0,0.00019671,2]
[372601829,1752701440113,-460.0,0.00019671,2]
[372601830,1752701440123,-460.0,0.00019671,2]
[372601832,1752701440132,-859.32,0.00019671,2]
[372601834,1752701440141,-460.0,0.00019671,2]
[372601836,1752701440150,-460.0,0.00019671,2]
[372601838,1752701440160,-460.0,0.00019671,2]
[372601840,1752701440169,-460.0,0.00019671,2]
[372601842,1752701440178,-460.0,0.00019671,2]
[372601844,1752701440188,-460.0,0.00019671,2]
[372601846,1752701440197,-1083.39,0.00019671,2]
[372601848,1752701440206,-684.49,0.00019671,2]
[372601850,1752701440215,-460.0,0.00019671,2]
[372601852,1752701440225,-460.0,0.00019671,2]
[372601854,1752701440234,-460.0,0.00019671,2]
[372601856,1752701440243,-460.0,0.00019671,2]
[372601858,1752701440253,-460.0,0.00019671,2]
[372601860,1752701440262,-500.0,0.00019671,2]
[372601862,1752701440272,-460.0,0.00019671,2]
[372601864,1752701440281,-267.07113923,0.00019671,2]
[372601866,1752701440291,-1238.63,0.00019671,2]
[372601868,1752701440300,-544.98123664,0.00019671,2]
[372601870,1752701440309,-460.0,0.00019671,2]
[372601872,1752701440319,-460.0,0.00019671,2]
[372601874,1752701440328,-730.8,0.00019671,2]
[372601876,1752701440338,-151.0,0.00019671,2]
[372601878,1752701440347,-903.74,0.00019671,2]
[372601880,1752701440357,-460.0,0.00019671,2]
[372601882,1752701440367,-1136.54,0.00019671,2]
[372601884,1752701440376,-460.0,0.00019671,2]
[372601886,1752701440386,-460.0,0.00019671,2]
[372601888,1752701440396,-460.0,0.00019671,2]
[372601890,1752701440405,-460.0,0.00019671,2]
[372601892,1752701440414,-725.78,0.00019671,2]
[372601894,1752701440425,-460.0,0.00019671,2]
[372601896,1752701440434,-460.0,0.00019671,2]
[372601898,1752701440443,-460.0,0.00019671,2]
[372601900,1752701440453,-557.61,0.00019671,2]
[372601902,1752701440462,-460.0,0.00019671,2]
[372601904,1752701440471,-606.23,0.00019671,2]
[372601906,1752701440480,-460.0,0.00019671,2]
[372601908,1752701440490,-460.0,0.00019671,2]
[372601910,1752701440499,-460.0,0.00019671,2]
[372601912,1752701440508,-460.0,0.00019671,2]
[372601914,1752701440517,-460.0,0.00019671,2]
[372601916,1752701440527,-460.0,0.00019671,2]
[372601919,1752701440537,-502.48493896,0.00019671,2]
[372601921,1752701440547,-660.69,0.00019671,2]
[372601950,1752701440816,-507.69,0.00019671,2]
[372601954,1752701440852,-460.0,0.00019671,2]
[372601956,1752701440862,-460.0,0.00019671,2]
[372601958,1752701440871,-460.0,0.00019671,2]
[372601960,1752701440882,-460.0,0.00019671,2]
[372601962,1752701440892,-460.0,0.00019671,2]
[372601964,1752701440901,-563.14819364,0.00019671,2]
[372601966,1752701440911,-460.0,0.00019671,2]
[372601968,1752701440920,-460.0,0.00019671,2]
[372601970,1752701440929,-151.0,0.00019671,2]
[372601972,1752701440939,-1202.07,0.00019671,2]
[372601974,1752701440948,-500.0,0.00019671,2]
[372601976,1752701440958,-460.0,0.00019671,2]
[372601978,1752701440967,-483.16,0.00019671,2]
[372601980,1752701440976,-460.0,0.00019671,2]
[372601982,1752701440986,-2488.63,0.00019671,2]
[372601984,1752701440995,-1322.13,0.00019671,2]
[372601986,1752701441005,-1545.82,0.00019671,2]
[372601988,1752701441014,-461.96592007,0.00019671,2]
[372601990,1752701441025,-151.0,0.00019671,2]
[372601992,1752701441034,-460.0,0.00019671,2]
[372601994,1752701441043,-460.0,0.00019671,2]
[372601996,1752701441052,-460.0,0.00019671,2]
[372601998,1752701441062,-1603.2,0.00019671,2]
[372602000,1752701441071,-460.0,0.00019671,2]
[372602002,1752701441080,-460.0,0.00019671,2]
[372602004,1752701441089,-461.15765315,0.00019671,2]
[372602006,1752701441099,-460.0,0.00019671,2]
[372602008,1752701441108,-460.0,0.00019671,2]
[372602010,1752701441117,-460.0,0.00019671,2]
[372602012,1752701441127,-151.0,0.00019671,2]
[372602014,1752701441136,-3871.15,0.00019671,2]
[372602016,1752701441145,-460.0,0.00019671,2]
[372602018,1752701441155,-565.58,0.00019671,2]
[372602020,1752701441165,-500.0,0.00019671,2]
[372602022,1752701441174,-460.0,0.00019671,2]
[372602024,1752701441184,-460.0,0.00019671,2]
[372602026,1752701441193,-460.0,0.00019671,2]
[372602028,1752701441203,-460.0,0.00019671,2]
[372602030,1752701441212,-460.0,0.00019671,2]
[372602032,1752701441222,-493.12652672,0.00019671,2]
[372602033,1752701441233,-491.31,0.00019671,2]
[372602035,1752701441242,-460.0,0.00019671,2]
[372602038,1752701441251,-461.20398739,0.00019671,2]
[372602039,1752701441261,-460.0,0.00019671,2]
[372602042,1752701441271,-460.0,0.00019671,2]
[372602044,1752701441280,-463.97434812,0.00019671,2]
[372602045,1752701441290,-460.0,0.00019671,2]
[372602048,1752701441300,-460.0,0.00019671,2]
[372602049,1752701441309,-460.0,0.00019671,2]
[372602052,1752701441319,-460.0,0.00019671,2]
[372602054,1752701441328,-957.2,0.00019671,2]
[372602056,1752701441339,-460.0,0.00019671,2]
[372602058,1752701441348,-460.0,0.00019671,2]
[372602060,1752701441358,-567.07,0.00019671,2]
[372602062,1752701441368,-460.0,0.00019671,2]
[372602064,1752701441378,-300.39463695,0.00019671,2]
[372602066,1752701441388,-460.0,0.00019671,2]
[372602068,1752701441399,-460.0,0.00019671,2]
[372602070,1752701441408,-460.0,0.00019671,2]
[372602072,1752701441417,-460.0,0.00019671,2]
[372602074,1752701441426,-460.0,0.00019671,2]
[372602076,1752701441436,-460.0,0.00019671,2]
[372602078,1752701441445,-481.07,0.00019671,2]
[372602080,1752701441455,-460.0,0.00019671,2]
[372602082,1752701441465,-460.0,0.00019671,2]
[372602084,1752701441474,-607.91,0.00019671,2]
[372602086,1752701441484,-460.0,0.00019671,2]
[372602088,1752701441493,-1750.13,0.00019671,2]
[372602090,1752701441503,-717.25,0.00019671,2]
[372602092,1752701441512,-460.0,0.00019671,2]
[372602093,1752701441521,-460.0,0.00019671,2]
[372602096,1752701441530,-580.0,0.00019671,2]
[372602098,1752701441540,-460.0,0.00019671,2]
[372602099,1752701441549,-460.0,0.00019671,2]
[372602101,1752701441559,-460.0,0.00019671,2]
[372602104,1752701441569,-663.19,0.00019671,2]
[372602105,1752701441578,-460.0,0.00019671,2]
[372602107,1752701441587,-1158.61,0.00019671,2]
[372602110,1752701441597,-460.0,0.00019671,2]
[372602112,1752701441606,-460.0,0.00019671,2]
[372602113,1752701441615,-460.0,0.00019671,2]
[372602116,1752701441625,-896.34,0.00019671,2]
[372602118,1752701441634,-460.0,0.00019671,2]
[372602119,1752701441643,-460.0,0.00019671,2]
[372602122,1752701441653,-460.0,0.00019671,2]
[372602124,1752701441662,-460.0,0.00019671,2]
[372602125,1752701441672,-460.0,0.00019671,2]
[372602127,1752701441681,-460.0,0.00019671,2]
[372602130,1752701441691,-1494.11,0.00019671,2]
[372602132,1752701441700,-460.0,0.00019671,2]
[372602133,1752701441709,-460.0,0.00019671,2]
[372602136,1752701441719,-460.0,0.00019671,2]
[372602138,1752701441728,-151.0,0.00019671,2]
[372602140,1752701441738,-460.0,0.00019671,2]
[372602142,1752701441747,-460.0,0.00019671,2]
[372602143,1752701441756,-151.0,0.00019671,2]
[372602146,1752701441766,-1141.57,0.00019671,2]
[372602147,1752701441777,-779.72967,0.00019671,2]
[372602149,1752701441787,-582.23648838,0.00019671,2]
[372602151,1752701441796,-151.0,0.00019671,2]
[372602154,1752701441808,-559.93,0.00019671,2]
[372602155,1752701441817,-460.0,0.00019671,2]
[372602158,1752701441827,-846.71,0.00019671,2]
[372602160,1752701441836,-460.0,0.00019671,2]
[372602162,1752701441847,-779.72967,0.00019671,2]
[372602164,1752701441856,-460.0,0.00019671,2]
[372602166,1752701441866,-460.0,0.00019671,2]
[372602167,1752701441875,-151.0,0.00019671,2]
[372602169,1752701441886,-151.0,0.00019671,2]
[372602172,1752701441896,-460.0,0.00019671,2]
[372602174,1752701441905,-460.0,0.00019671,2]
[372602176,1752701441914,-460.0,0.00019671,2]
[372602178,1752701441922,-535.33,0.00019671,2]
[372602180,1752701441931,-749.96,0.00019671,2]
[372602182,1752701441940,-460.0,0.00019671,2]
[372602184,1752701441950,-151.0,0.00019671,2]
[372602186,1752701441959,-151.0,0.00019671,2]
[372602187,1752701441970,-623.4,0.00019671,2]
[372602190,1752701441980,-460.0,0.00019671,2]
[372602192,1752701441990,-460.0,0.00019671,2]
[372602194,1752701441999,-595.06,0.00019671,2]
[372602196,1752701442009,-545.27,0.00019671,2]
[372602198,1752701442019,-460.0,0.00019671,2]
[372602200,1752701442029,-460.0,0.00019671,2]
[372602202,1752701442038,-151.0,0.00019671,2]
[372602203,1752701442048,-460.0,0.00019671,2]
[372602205,1752701442057,-825.37,0.00019671,2]
[372602207,1752701442066,-151.0,0.00019671,2]
[372602209,1752701442075,-460.0,0.00019671,2]
[372602211,1752701442085,-151.0,0.00019671,2]
[372602213,1752701442095,-460.0,0.00019671,2]
[372602215,1752701442104,-955.78,0.00019671,2]
[372602217,1752701442113,-460.0,0.00019671,2]
[372602219,1752701442123,-151.0,0.00019671,2]
[372602221,1752701442132,-188.195544,0.00019671,2]
[372602223,1752701442142,-460.0,0.00019671,2]
[372602225,1752701442151,-460.0,0.00019671,2]
[372602227,1752701442161,-460.0,0.00019671,2]
[372602229,1752701442170,-560.77,0.00019671,2]
[372602231,1752701442179,-460.0,0.00019671,2]
[372602233,1752701442189,-460.0,0.00019671,2]
[372602235,1752701442198,-164.772086,0.00019671,2]
[372602237,1752701442208,-151.0,0.00019671,2]
[372602239,1752701442218,-151.375249,0.00019671,2]
[372602241,1752701442227,-460.0,0.00019671,2]
[372602243,1752701442236,-465.31,0.00019671,2]
[372602245,1752701442246,-598.42,0.00019671,2]
[372602247,1752701442256,-2364.27,0.00019671,2]
[372602249,1752701442265,-469.25,0.00019671,2]
[372602251,1752701442276,-164.772086,0.00019671,2]
[372602253,1752701442286,-648.97,0.00019671,2]
[372602255,1752701442296,-460.0,0.00019671,2]
[372602257,1752701442305,-460.0,0.00019671,2]
[372602259,1752701442315,-460.0,0.00019671,2]
[372602261,1752701442325,-151.0,0.00019671,2]
[372602263,1752701442334,-460.0,0.00019671,2]
[372602265,1752701442344,-151.0,0.00019671,2]
[372602267,1752701442353,-151.720784,0.00019671,2]
[372602269,1752701442362,-460.0,0.00019671,2]
[372602271,1752701442371,-460.0,0.00019671,2]
[372602273,1752701442380,-460.0,0.00019671,2]
[372602275,1752701442390,-5300.92,0.00019671,2]
[372602277,1752701442399,-518.6,0.00019671,2]
[372602279,1752701442408,-460.0,0.00019671,2]
[372602281,1752701442417,-12216.61,0.00019671,2]
[372602283,1752701442426,-1580.96,0.00019671,2]
[372602285,1752701442436,-460.0,0.00019671,2]
[372602287,1752701442445,-1797.59,0.00019671,2]
[372602289,1752701442454,-460.0,0.00019671,2]
[372602291,1752701442463,-1064.09,0.00019671,2]
[372602293,1752701442473,-460.0,0.00019671,2]
[372602295,1752701442482,-553.92,0.00019671,2]
[372602297,1752701442492,-151.0,0.00019671,2]
[372602299,1752701442502,-1925.13,0.00019671,2]
[372602301,1752701442511,-151.0,0.00019671,2]
[372602303,1752701442521,-460.0,0.00019671,2]
[372602305,1752701442531,-779.38,0.00019671,2]